bitfinex/quotes_BTCUSD_20241222
["timestamp","ask_amount","ask_price","bid_price","bid_amount"]
[1734891418317,0.33164203,95715.0,95714.0,0.0950859]
[1734891418514,0.33164203,95715.0,95704.0,0.0950859]
[1734891418515,0.15,95714.0,95704.0,0.0950859]
[1734891418717,3.48764203,95715.0,95695.0,0.208996]
[1734891418718,0.15,95710.0,95709.0,0.0950859]
[1734891418944,1.3503084,95710.0,95709.0,0.0950859]
[1734891419334,1.0803084,95710.0,95709.0,0.0950859]
[1734891419529,0.2513084,95710.0,95709.0,0.0950859]
[1734891420536,0.25784839,95710.0,95709.0,0.0950859]
[1734891421626,0.10784839,95710.0,95709.0,0.0950859]
[1734891421788,0.10793389,95710.0,95709.0,0.0950859]
[1734891422033,0.01262549,95710.0,95709.0,0.0960859]
[1734891422810,8.55e-05,95710.0,95709.0,0.0961306]
[1734891423274,8.55e-05,95710.0,95709.0,0.0981306]
[1734891424108,8.55e-05,95710.0,95709.0,0.0970859]
[1734891425325,8.55e-05,95710.0,95709.0,0.09613054]
[1734891425727,8.55e-05,95710.0,95709.0,0.09913054]
[1734891426849,0.2513939,95710.0,95709.0,0.003]
[1734891427041,0.3274939,95710.0,95709.0,0.003]
[1734891428103,0.15,95709.0,95706.0,0.0950859]
[1734891428303,0.15,95707.0,95706.0,0.0950859]
[1734891428504,0.2513084,95707.0,95706.0,0.0950859]
[1734891428915,0.208973,95706.0,95702.0,0.0950859]
[1734891429273,0.2513084,95705.0,95702.0,0.0950859]
[1734891429420,0.25784864,95705.0,95702.0,0.0950859]
[1734891430035,0.00654024,95704.0,95702.0,0.0950859]
[1734891430213,0.1013084,95703.0,95702.0,0.0950859]
[1734891430464,0.25784864,95703.0,95702.0,0.0950859]
[1734891431417,0.25784864,95703.0,95702.0,0.0960859]
[1734891431634,0.25784864,95703.0,95702.0,0.0950859]
[1734891431990,0.26184864,95703.0,95702.0,0.0950859]
[1734891435453,0.11184864,95703.0,95702.0,0.0950859]
[1734891435656,0.10784864,95703.0,95702.0,0.0950859]
[1734891436006,0.11184864,95703.0,95702.0,0.0950859]
[1734891436210,0.01054024,95703.0,95702.0,0.09613074]
[1734891436375,0.01054024,95703.0,95702.0,0.09613052]
[1734891436581,0.00654024,95703.0,95702.0,0.09613052]
[1734891437788,0.00754024,95703.0,95702.0,0.09613052]
[1734891438264,0.00654024,95703.0,95702.0,0.09613052]
[1734891438477,0.00654024,95703.0,95702.0,0.10013052]
[1734891439825,0.00654024,95703.0,95702.0,0.20013052]
[1734891445321,0.00662574,95703.0,95702.0,0.20013052]
[1734891445778,7.4e-07,95703.0,95702.0,0.30013052]
[1734891445985,7.4e-07,95703.0,95702.0,0.4259859]
[1734891446198,7.4e-07,95703.0,95702.0,0.5272943]
[1734891447184,8.7e-07,95715.0,95714.0,0.2950859]
[1734891447960,8.7e-07,95715.0,95714.0,0.5040409]
[1734891448530,0.00100087,95715.0,95714.0,0.5120409]
[1734891448778,8.7e-07,95715.0,95714.0,0.5040409]
[1734891448977,8.56e-05,95742.0,95741.0,0.3039819]
[1734891449133,0.251394,95742.0,95741.0,0.3039819]
[1734891450033,0.1500856,95742.0,95741.0,0.3039819]
[1734891450592,8.56e-05,95742.0,95741.0,0.3039819]
[1734891451591,8.56e-05,95742.0,95741.0,0.3049819]
[1734891453212,0.380394,95742.0,95741.0,0.001]
[1734891453561,4.45933949,95742.0,95741.0,0.001]
[1734891454070,4.448288,95742.0,95741.0,0.001]
[1734891454208,4.448288,95742.0,95737.0,0.0950859]
[1734891454209,0.15,95739.0,95737.0,0.0950859]
[1734891454570,0.15,95737.0,95736.0,0.0950859]
[1734891454729,0.2513084,95737.0,95736.0,0.0950859]
[1734891455735,0.15,95735.0,95732.0,0.0950859]
[1734891455937,0.15,95733.0,95732.0,0.0950859]
[1734891456099,0.2513084,95733.0,95732.0,0.0950859]
[1734891457051,0.4602234,95733.0,95715.0,0.000171]
[1734891457261,0.15,95719.0,95715.0,0.000171]
[1734891457460,0.15,95717.0,95715.0,0.000171]
[1734891457655,0.0459,95726.0,95715.0,0.0952569]
[1734891457656,0.2513084,95716.0,95715.0,0.0952569]
[1734891458083,0.25784755,95716.0,95715.0,0.0952569]
[1734891459211,0.26184755,95716.0,95715.0,0.0952569]
[1734891460149,0.01053915,95716.0,95715.0,0.0952569]
[1734891460480,0.01053915,95716.0,95715.0,0.09630148]
[1734891460697,0.01053915,95716.0,95715.0,0.0952569]
[1734891460910,0.00653915,95716.0,95715.0,0.0952569]
[1734891461108,0.00953915,95716.0,95715.0,0.09630147]
[1734891462056,0.00653915,95716.0,95715.0,0.09630147]
[1734891462258,0.00653915,95716.0,95715.0,0.0962569]
[1734891463825,0.10784755,95716.0,95715.0,0.000171]
[1734891464024,0.10784755,95716.0,95715.0,0.0952569]
[1734891464229,0.25784755,95716.0,95715.0,0.1002569]
[1734891464432,0.25784755,95716.0,95715.0,0.0952569]
[1734891465284,0.25784755,95716.0,95715.0,0.0972569]
[1734891465626,0.25784755,95716.0,95715.0,0.0952569]
[1734891467248,0.26084755,95716.0,95715.0,0.0952569]
[1734891473427,4.77934755,95716.0,95715.0,0.000171]
[1734891473672,4.80272905,95716.0,95715.0,0.000171]
[1734891473872,2.57734755,95716.0,95715.0,0.000171]
[1734891474001,0.53934755,95716.0,95715.0,0.000171]
[1734891474199,0.46534755,95716.0,95715.0,0.000171]
[1734891474427,0.42434755,95716.0,95715.0,0.000171]
[1734891474641,0.26084755,95716.0,95715.0,0.000171]
[1734891474845,0.25784755,95716.0,95715.0,0.000171]
[1734891475050,0.25784755,95716.0,95715.0,0.0952569]
[1734891476704,0.26684755,95716.0,95715.0,0.001171]
[1734891477915,0.15,95704.0,95692.0,0.209003]
[1734891478072,0.15,95702.0,95695.0,0.00016203]
[1734891478272,0.15,95700.0,95696.0,0.208995]
[1734891478475,0.15,95698.0,95696.0,0.208995]
[1734891478792,0.1013084,95697.0,95696.0,0.208995]
[1734891478990,0.25784755,95697.0,95696.0,0.208995]
[1734891479613,0.25784755,95697.0,95695.0,0.00016203]
[1734891479842,0.15,95696.0,95695.0,0.00016203]
[1734891480137,0.2513084,95696.0,95695.0,0.00016203]
[1734891480439,0.25784755,95696.0,95695.0,0.00016203]
[1734891482479,0.10784755,95696.0,95695.0,0.00016203]
[1734891482704,0.00653915,95696.0,95695.0,0.08000697]
[1734891482903,0.00653915,95696.0,95695.0,0.08000681]
[1734891483205,0.208941,95721.0,95705.0,0.208973]
[1734891483431,0.1013084,95715.0,95705.0,0.208973]
[1734891483739,0.1013084,95714.0,95695.0,0.07996203]
[1734891483933,0.1013084,95714.0,95705.0,0.208975]
[1734891484094,0.15,95713.0,95705.0,0.208975]
[1734891484272,0.15,95711.0,95705.0,0.208975]
[1734891484469,0.01242828,95725.0,95706.0,0.208973]
[1734891484470,0.15,95709.0,95706.0,0.208973]
[1734891484860,0.10784769,95708.0,95706.0,0.417946]
[1734891485344,0.00653929,95707.0,95706.0,0.208973]
[1734891485510,0.10784769,95707.0,95706.0,0.208973]
[1734891485893,0.10784769,95707.0,95695.0,0.08296203]
[1734891485894,0.25784769,95707.0,95695.0,0.29195703]
[1734891486106,0.15,95705.0,95695.0,0.00416203]
[1734891486308,0.15,95703.0,95695.0,0.00416203]
[1734891486515,0.15,95701.0,95695.0,0.00416203]
[1734891486717,0.15,95699.0,95696.0,0.208995]
[1734891487086,0.15,95697.0,95695.0,0.00016203]
[1734891487252,0.2513084,95696.0,95695.0,0.00016203]
[1734891487637,0.25784769,95696.0,95695.0,0.00016203]
[1734891488468,0.3759147,95696.0,95695.0,0.00016203]
[1734891488642,4.83404769,95696.0,95695.0,0.00016203]
[1734891488997,0.25784769,95696.0,95695.0,0.00016203]
[1734891489558,0.2513084,95696.0,95695.0,0.00016203]
[1734891490162,4.7143084,95696.0,95695.0,0.00016203]
[1734891490362,1.9073084,95696.0,95695.0,0.00016203]
[1734891490568,0.5253084,95696.0,95695.0,0.00016203]
[1734891490991,0.2513084,95696.0,95695.0,0.00016203]
[1734891491588,0.2543084,95696.0,95695.0,0.00016203]
[1734891492071,0.2513084,95696.0,95695.0,0.00016203]
[1734891492217,0.25784918,95696.0,95695.0,0.00016203]
[1734891493428,0.26584918,95696.0,95695.0,0.00116203]
[1734891493827,0.25784918,95696.0,95695.0,0.00016203]
[1734891494141,0.26084918,95696.0,95695.0,0.00016203]
[1734891494421,0.25784918,95696.0,95695.0,0.00016203]
[1734891494829,0.26584918,95696.0,95695.0,0.00116203]
[1734891495033,0.38674918,95696.0,95695.0,0.00016203]
[1734891495445,0.39374918,95696.0,95695.0,0.00116203]
[1734891495621,0.39374918,95696.0,95695.0,0.00133303]
[1734891495851,4.59574918,95696.0,95695.0,0.00133303]
[1734891496026,4.88874918,95696.0,95695.0,0.00133303]
[1734891496657,4.88174918,95696.0,95695.0,0.00033303]
[1734891496881,4.98174918,95696.0,95695.0,0.00033303]
[1734891497014,4.98874918,95696.0,95695.0,0.00133303]
[1734891497427,4.98174918,95696.0,95695.0,0.00033303]
[1734891497840,2.17274918,95696.0,95695.0,0.00033303]
[1734891498261,0.40974918,95696.0,95695.0,0.00033303]
[1734891498519,1.02674918,95696.0,95695.0,0.00133303]
[1734891498895,0.86754918,95696.0,95695.0,0.00133303]
[1734891499128,0.26684918,95696.0,95695.0,0.00133303]
[1734891500288,0.25784918,95696.0,95695.0,0.00033303]
[1734891500693,2.90884918,95696.0,95695.0,0.00033303]
[1734891500902,2.91784918,95696.0,95695.0,0.00133303]
[1734891501077,3.12204918,95696.0,95695.0,0.00133303]
[1734891501526,3.14325208,95696.0,95695.0,0.00133303]
[1734891502138,3.19095208,95696.0,95695.0,0.00133303]
[1734891502815,0.273,95691.0,95690.0,0.000171]
[1734891503062,4.8463084,95691.0,95690.0,0.000171]
[1734891503987,4.24547358,95691.0,95690.0,0.000171]
[1734891504187,2.34047358,95691.0,95690.0,0.000171]
[1734891504779,1.47884918,95691.0,95690.0,0.001171]
[1734891504976,0.25784918,95691.0,95690.0,0.000171]
[1734891505413,0.26684918,95691.0,95690.0,0.001171]
[1734891506407,0.28984918,95691.0,95690.0,0.001171]
[1734891508349,0.2603084,95691.0,95690.0,0.001171]
[1734891508660,0.2668494,95691.0,95690.0,0.001171]
[1734891508829,0.2578494,95691.0,95690.0,0.000171]
[1734891509351,4.7528494,95691.0,95690.0,0.000171]
[1734891509536,4.1548494,95691.0,95690.0,0.000171]
[1734891510324,4.1744738,95691.0,95690.0,0.000171]
[1734891511788,4.3997738,95691.0,95690.0,0.000171]
[1734891512166,4.5077738,95691.0,95690.0,0.001171]
[1734891512369,4.51962618,95691.0,95690.0,0.001171]
[1734891512831,0.209067,95663.0,95650.0,0.209266]
[1734891513016,0.15,95658.0,95650.0,0.2098062]
[1734891513224,0.15,95656.0,95650.0,0.2098062]
[1734891513418,0.1013084,95655.0,95650.0,0.2098062]
[1734891513633,0.15,95654.0,95650.0,0.2098062]
[1734891513940,0.1013084,95653.0,95650.0,0.2098062]
[1734891514154,0.15,95652.0,95650.0,0.0007112]
[1734891514422,0.2743084,95651.0,95650.0,0.0007112]
[1734891514663,4.5829424,95651.0,95650.0,0.0007112]
[1734891514868,0.2578494,95651.0,95650.0,0.0007112]
[1734891515977,0.2578494,95651.0,95650.0,0.0017112]
[1734891516640,0.2578494,95651.0,95650.0,0.0789112]
[1734891518662,0.2628494,95651.0,95650.0,0.0789112]
[1734891518925,0.2578494,95651.0,95650.0,0.0789112]
[1734891519151,0.1078494,95651.0,95650.0,0.0789112]
[1734891519338,0.007541,95651.0,95650.0,0.0789112]
[1734891519969,0.007541,95651.0,95650.0,0.07995654]
[1734891520139,0.001,95651.0,95650.0,0.0789112]
[1734891520348,0.006541,95672.0,95650.0,0.07995651]
[1734891520502,0.15,95670.0,95651.0,0.00104531]
[1734891520706,0.15,95668.0,95652.0,0.209091]
[1734891520953,0.2513084,95667.0,95666.0,0.20906]
[1734891521168,0.2578494,95667.0,95666.0,0.20906]
[1734891522898,0.15,95666.0,95660.0,0.209072]
[1734891523100,0.15,95664.0,95655.0,0.209084]
[1734891523305,0.15,95661.0,95652.0,0.209089]
[1734891523507,0.15,95659.0,95652.0,0.209089]
[1734891523813,0.15,95657.0,95652.0,0.209089]
[1734891524108,0.15,95655.0,95652.0,0.209089]
[1734891524311,0.1013084,95654.0,95652.0,0.209089]
[1734891524857,0.156541,95653.0,95650.0,0.0007112]
[1734891525068,0.15,95651.0,95650.0,0.0007112]
[1734891525309,0.2513084,95651.0,95650.0,0.0007112]
[1734891525532,0.2578494,95651.0,95650.0,0.0007112]
[1734891526616,0.2578494,95651.0,95650.0,0.0037112]
[1734891527023,0.2578494,95651.0,95650.0,0.0007112]
[1734891527495,0.2618494,95651.0,95650.0,0.0007112]
[1734891529226,0.2578494,95651.0,95650.0,0.0007112]
[1734891529423,0.2638494,95651.0,95650.0,0.0017112]
[1734891529656,0.2638494,95651.0,95650.0,0.2108062]
[1734891529858,0.1078494,95651.0,95650.0,0.2854062]
[1734891530258,0.010541,95651.0,95650.0,0.2854062]
[1734891530470,0.006541,95651.0,95650.0,0.2854062]
[1734891530874,0.006,95651.0,95650.0,0.2864062]
[1734891532343,0.006541,95678.0,95677.0,0.209036]
[1734891532546,0.1078494,95678.0,95677.0,0.209036]
[1734891533026,0.1078494,95678.0,95657.0,0.209079]
[1734891533027,2.0328494,95678.0,95657.0,0.209079]
[1734891533150,0.001,95651.0,95650.0,0.0077112]
[1734891533351,0.001,95651.0,95650.0,0.2168062]
[1734891533594,0.001,95651.0,95650.0,0.2098062]
[1734891533931,0.001,95651.0,95650.0,0.30328764]
[1734891533932,0.007541,95651.0,95650.0,0.30328764]
[1734891534247,0.006541,95651.0,95650.0,0.30328764]
[1734891534918,0.006541,95651.0,95650.0,0.2098062]
[1734891535902,0.006541,95651.0,95650.0,0.2108062]
[1734891537826,0.006541,95669.0,95668.0,0.209056]
[1734891537951,0.006541,95669.0,95668.0,0.284656]
[1734891538713,0.006541,95669.0,95668.0,0.329856]
[1734891540309,0.1078494,95669.0,95668.0,0.284656]
[1734891541640,0.1078494,95669.0,95668.0,0.287656]
[1734891544129,0.2578494,95669.0,95668.0,0.003]
[1734891544985,0.15,95668.0,95657.0,0.20908]
[1734891545284,0.1013084,95666.0,95657.0,0.20908]
[1734891545468,0.15,95665.0,95657.0,0.20908]
[1734891545682,0.1013084,95664.0,95657.0,0.20908]
[1734891545880,0.1078494,95664.0,95657.0,0.20908]
[1734891546026,0.15,95663.0,95657.0,0.20908]
[1734891546232,0.15,95653.0,95644.0,0.09348144]
[1734891546475,0.2513084,95651.0,95644.0,0.09348144]
[1734891546695,0.2513084,95651.0,95639.0,0.18726096]
[1734891546696,4.7463084,95651.0,95639.0,0.09348144]
[1734891546901,0.2808494,95651.0,95639.0,0.09348144]
[1734891547548,0.5038494,95651.0,95650.0,0.0017112]
[1734891547788,0.4118494,95651.0,95650.0,0.0007112]
[1734891547980,0.2578494,95651.0,95650.0,0.0007112]
[1734891548200,0.2618494,95651.0,95650.0,0.0007112]
[1734891553081,4.7273084,95651.0,95650.0,0.0007112]
[1734891553280,0.5033084,95651.0,95650.0,0.0007112]
[1734891553985,0.50985258,95651.0,95650.0,0.0007112]
[1734891554689,0.53285258,95651.0,95650.0,0.0007112]
[1734891554917,0.5263084,95651.0,95650.0,0.0007112]
[1734891555937,0.5223084,95651.0,95650.0,0.0007112]
[1734891556372,0.5313084,95651.0,95650.0,0.0017112]
[1734891559999,0.53785297,95651.0,95650.0,0.0017112]
[1734891562009,0.52015297,95651.0,95650.0,0.0017112]
[1734891562702,5.20124597,95651.0,95650.0,0.0017112]
[1734891563108,5.19224597,95651.0,95650.0,0.0007112]
[1734891563509,5.20124597,95651.0,95650.0,0.0007112]
[1734891564856,5.10124597,95651.0,95650.0,0.0007112]
[1734891565058,3.49585297,95651.0,95650.0,0.0007112]
[1734891565261,2.94585297,95651.0,95650.0,0.0007112]
[1734891565405,3.15494597,95651.0,95650.0,0.0007112]
[1734891566124,3.24594597,95651.0,95650.0,0.0007112]
[1734891566352,3.26894597,95651.0,95650.0,0.0007112]
[1734891566555,3.27794597,95651.0,95650.0,0.0007112]
[1734891566713,3.26894597,95651.0,95650.0,0.0007112]
[1734891567113,3.27694597,95651.0,95650.0,0.0007112]
[1734891568558,3.35674597,95651.0,95650.0,0.0007112]
[1734891568969,2.95985297,95651.0,95650.0,0.0007112]
[1734891569165,2.93685297,95651.0,95650.0,0.0007112]
[1734891569367,2.94585297,95651.0,95650.0,0.0007112]
[1734891569744,2.93685297,95651.0,95650.0,0.0007112]
[1734891569969,2.94585297,95651.0,95650.0,0.0007112]
[1734891570292,2.93685297,95651.0,95650.0,0.0007112]
[1734891570730,2.88485297,95651.0,95650.0,0.0007112]
[1734891572500,0.26385297,95651.0,95650.0,0.0007112]
[1734891574192,0.26385297,95651.0,95649.0,0.2042622]
[1734891574374,0.15,95650.0,95649.0,0.2042622]
[1734891574574,0.2513084,95650.0,95649.0,0.2042622]
[1734891574771,0.25785297,95650.0,95649.0,0.2042622]
[1734891575661,0.26385297,95650.0,95649.0,0.2042622]
[1734891576360,0.26385297,95650.0,95645.0,0.000171]
[1734891576529,0.15,95648.0,95645.0,0.000171]
[1734891576730,4.5563084,95647.0,95645.0,0.000171]
[1734891576927,4.622,95646.0,95645.0,0.000171]
[1734891577073,4.25985297,95646.0,95645.0,0.000171]
[1734891578744,3.80585297,95646.0,95645.0,0.000171]
[1734891579223,0.25785297,95646.0,95645.0,0.000171]
[1734891579874,0.26185297,95646.0,95645.0,0.000171]
[1734891581967,0.01054457,95646.0,95645.0,0.125671]
[1734891582170,0.01054457,95646.0,95645.0,0.12671641]
[1734891582528,5.7e-07,95646.0,95645.0,0.32671622]
[1734891582724,7.351e-05,95651.0,95646.0,0.1]
[1734891582928,7.351e-05,95651.0,95647.0,0.0763]
[1734891583140,7.351e-05,95651.0,95650.0,0.209095]
[1734891585220,0.00107351,95651.0,95650.0,0.209095]
[1734891585423,7.351e-05,95651.0,95650.0,0.209095]
[1734891585788,0.00107351,95651.0,95650.0,0.212095]
[1734891586129,7.351e-05,95651.0,95650.0,0.209095]
[1734891586469,7.351e-05,95651.0,95650.0,0.212095]
[1734891586470,0.10238191,95651.0,95650.0,0.212095]
[1734891586972,0.10138191,95651.0,95650.0,0.209095]
[1734891587174,0.10238191,95651.0,95650.0,0.212095]
[1734891588645,0.10138191,95651.0,95650.0,0.209095]
[1734891589050,0.10138191,95651.0,95650.0,0.212095]
[1734891590232,0.10138191,95651.0,95650.0,0.209095]
[1734891591259,0.10138191,95651.0,95650.0,0.210095]
[1734891592783,0.10138191,95651.0,95650.0,0.209095]
[1734891592980,0.10138191,95651.0,95650.0,0.212095]
[1734891593145,7.351e-05,95651.0,95650.0,0.212095]
[1734891593994,0.00015921,95651.0,95650.0,0.212095]
[1734891594760,0.00015921,95651.0,95650.0,0.291795]
[1734891594955,0.00670147,95651.0,95650.0,0.291795]
[1734891595332,0.00015921,95651.0,95650.0,0.291795]
[1734891596746,0.00015921,95651.0,95650.0,0.288795]
[1734891597003,0.00015921,95651.0,95650.0,0.3825329]
[1734891597322,0.00015921,95651.0,95650.0,0.3855329]
[1734891598258,0.00015921,95651.0,95650.0,0.291795]
[1734891598871,0.00015921,95651.0,95650.0,0.288795]
[1734891599278,0.00115921,95651.0,95650.0,0.291795]
[1734891607687,2.1e-07,95651.0,95650.0,0.291795]
[1734891607883,0.00654247,95651.0,95650.0,0.291795]
[1734891608063,0.00654247,95651.0,95650.0,0.391795]
[1734891608292,0.00654247,95651.0,95650.0,1.2869034]
[1734891608293,4.7e-07,95651.0,95650.0,1.2869034]
[1734891608703,4.7e-07,95689.0,95688.0,0.209012]
[1734891608902,0.10130887,95689.0,95688.0,0.209012]
[1734891609626,0.25130887,95689.0,95688.0,0.209012]
[1734891609824,0.10130887,95689.0,95688.0,0.209012]
[1734891610149,4.7e-07,95689.0,95688.0,0.209012]
[1734891610589,0.10130887,95689.0,95678.0,0.209034]
[1734891610719,0.1013084,95688.0,95678.0,0.209034]
[1734891610924,4.5733084,95688.0,95678.0,0.209034]
[1734891611127,0.1013084,95688.0,95674.0,0.209041]
[1734891611328,0.15,95687.0,95679.0,0.20903]
[1734891611588,0.15,95685.0,95679.0,0.20903]
[1734891611776,0.1013084,95684.0,95674.0,0.209041]
[1734891611931,0.15,95683.0,95674.0,0.418084]
[1734891612170,0.15,95681.0,95677.0,0.209034]
[1734891612368,0.1013084,95680.0,95677.0,0.209034]
[1734891613246,0.1013084,95680.0,95677.0,0.41807]
[1734891613867,0.1013084,95680.0,95679.0,0.209032]
[1734891614671,0.00062787,95690.0,95689.0,0.20901]
[1734891617226,0.00462787,95690.0,95689.0,0.20901]
[1734891618183,0.00062787,95690.0,95689.0,0.20901]
[1734891618402,0.00062787,95690.0,95689.0,0.21301]
[1734891620742,0.00716768,95690.0,95689.0,0.21301]
[1734891622370,0.00062787,95690.0,95689.0,0.21301]
[1734891623032,0.00062787,95690.0,95689.0,0.22401661]
[1734891623236,0.00062787,95690.0,95689.0,0.21301]
[1734891624764,0.00716768,95690.0,95689.0,0.21301]
[1734891626259,0.25847608,95690.0,95689.0,0.004]
[1734891627148,0.35697608,95690.0,95689.0,0.004]
[1734891627351,0.35697608,95690.0,95675.0,0.09366452]
[1734891627352,0.359038,95676.0,95675.0,0.09366452]
[1734891627556,0.359038,95676.0,95662.0,0.209068]
[1734891627557,0.15,95675.0,95662.0,0.209068]
[1734891627726,0.1013084,95674.0,95662.0,0.209068]
[1734891627958,0.15,95673.0,95662.0,0.209068]
[1734891628106,0.1013084,95672.0,95662.0,0.209068]
[1734891628312,0.15,95671.0,95662.0,0.209068]
[1734891628519,0.15,95669.0,95662.0,0.209068]
[1734891628717,0.15,95667.0,95662.0,0.209068]
[1734891628917,0.15,95665.0,95662.0,0.212068]
[1734891629119,0.15,95663.0,95658.0,0.209078]
[1734891629328,0.1013084,95662.0,95658.0,0.209078]
[1734891629497,0.1013084,95662.0,95654.0,0.209086]
[1734891629860,0.00653981,95661.0,95656.0,0.209082]
[1734891630061,0.1013084,95660.0,95656.0,0.209082]
[1734891630384,0.10784821,95660.0,95653.0,0.209089]
[1734891630629,0.00653981,95660.0,95657.0,0.209079]
[1734891630841,0.004,95671.0,95670.0,0.209051]
[1734891631008,0.25185033,95671.0,95670.0,0.209051]
[1734891631205,0.10185033,95671.0,95670.0,0.209051]
[1734891631956,0.10839173,95671.0,95670.0,0.209051]
[1734891632494,0.10839173,95671.0,95670.0,0.211051]
[1734891634191,0.10839173,95671.0,95670.0,0.209051]
[1734891634981,0.10839173,95671.0,95670.0,0.211051]
[1734891635213,0.10839173,95671.0,95670.0,0.209051]
[1734891635563,0.10839173,95671.0,95670.0,0.211051]
[1734891635789,0.00708333,95671.0,95670.0,0.211051]
[1734891636141,0.00708333,95671.0,95670.0,0.287251]
[1734891636873,0.10185033,95671.0,95670.0,0.209051]
[1734891637321,0.10185033,95671.0,95670.0,0.210051]
[1734891637499,0.10839173,95671.0,95670.0,0.001]
[1734891637658,0.10839173,95671.0,95668.0,0.418109]
[1734891637859,0.1013084,95670.0,95668.0,0.418109]
[1734891638686,0.0065414,95669.0,95668.0,0.418109]
[1734891638885,0.1078498,95669.0,95668.0,0.418109]
[1734891639084,0.1078498,95669.0,95668.0,0.421109]
[1734891639523,0.0065414,95669.0,95668.0,0.421109]
[1734891640206,0.0065414,95670.0,95668.0,0.421109]
[1734891640405,0.0065414,95670.0,95668.0,0.418109]
[1734891640632,0.0065414,95670.0,95669.0,0.07924514]
[1734891640831,0.00054193,95671.0,95670.0,0.209051]
[1734891642029,0.00054193,95671.0,95670.0,0.214051]
[1734891642442,0.00054193,95671.0,95670.0,0.209051]
[1734891643770,0.00054193,95671.0,95670.0,0.214051]
[1734891643978,0.00062763,95671.0,95670.0,0.209051]
[1734891644315,0.00162763,95671.0,95670.0,0.215051]
[1734891647598,0.10293603,95671.0,95670.0,0.006]
[1734891647800,0.33053603,95671.0,95670.0,0.006]
[1734891648410,0.33707704,95671.0,95670.0,0.006]
[1734891649775,0.10947704,95671.0,95670.0,0.006]
[1734891649955,0.00816864,95671.0,95670.0,0.006]
[1734891650756,0.00716864,95671.0,95668.0,0.41811]
[1734891651154,0.01216864,95671.0,95668.0,0.41811]
[1734891651317,0.00716864,95671.0,95668.0,0.41811]
[1734891651517,0.00654101,95670.0,95668.0,0.209055]
[1734891652148,0.00654101,95669.0,95668.0,0.214055]
[1734891652549,0.00654101,95669.0,95668.0,0.209055]
[1734891654373,0.00654101,95669.0,95668.0,0.214055]
[1734891655426,0.00654101,95669.0,95668.0,0.209055]
[1734891655663,0.00754101,95669.0,95668.0,0.214055]
[1734891664212,6.4e-07,95671.0,95670.0,0.736]
[1734891664419,6.4e-07,95671.0,95670.0,1.0890084]
[1734891664618,6e-07,95690.0,95689.0,0.1]
[1734891664882,6e-07,95690.0,95689.0,0.24704476]
[1734891665084,6e-07,95690.0,95689.0,0.246]
[1734891665683,0.0010006,95690.0,95689.0,0.251]
[1734891666110,6e-07,95690.0,95689.0,0.251]
[1734891666662,6e-07,95690.0,95689.0,0.61769995]
[1734891666997,0.0776,95733.0,95693.0,0.209001]
[1734891667197,0.1013084,95715.0,95694.0,0.0010447]
[1734891667456,0.1013084,95715.0,95714.0,0.208955]
[1734891667791,0.2090454,95752.0,95714.0,0.208955]
[1734891667792,0.0805856,95743.0,95714.0,0.208955]
[1734891667989,0.0805856,95743.0,95715.0,0.00104458]
[1734891668703,0.00024807,95716.0,95715.0,0.00104458]
[1734891670237,7e-08,95716.0,95715.0,0.10104458]
[1734891671274,7e-08,95716.0,95715.0,0.10704458]
[1734891671698,7e-08,95716.0,95715.0,0.10104458]
[1734891672503,7e-08,95716.0,95715.0,0.11004458]
[1734891672941,7e-08,95716.0,95715.0,0.21004458]
[1734891673145,7e-08,95716.0,95715.0,0.745]
[1734891674777,7e-08,95716.0,95715.0,0.545]
[1734891675945,7e-08,95716.0,95715.0,0.536]
[1734891676189,7e-08,95716.0,95715.0,0.543]
[1734891677639,7e-08,95716.0,95715.0,0.536]
[1734891677902,0.10130847,95716.0,95715.0,0.541]
[1734891678142,0.10130847,95716.0,95715.0,0.005]
[1734891678372,0.10130847,95716.0,95714.0,0.208955]
[1734891678597,7e-08,95716.0,95715.0,0.006]
[1734891678818,7e-08,95716.0,95714.0,0.208955]
[1734891679503,7e-08,95716.0,95715.0,0.00104472]
[1734891679727,7e-08,95716.0,95715.0,0.00104453]
[1734891680910,7e-08,95716.0,95715.0,0.00121573]
[1734891681358,8.567e-05,95716.0,95715.0,0.00121573]
[1734891681623,0.00108567,95716.0,95715.0,0.01021573]
[1734891682588,0.00098639,95716.0,95715.0,0.01021573]
[1734891684459,0.00098639,95716.0,95715.0,0.0091712]
[1734891684658,0.10229479,95716.0,95715.0,0.0091712]
[1734891687027,0.1013084,95716.0,95715.0,0.0001712]
[1734891687285,0.1023084,95716.0,95715.0,0.0091712]
[1734891688198,0.1013084,95716.0,95715.0,0.0001712]
[1734891688431,0.1023084,95716.0,95715.0,0.0001712]
[1734891688667,0.1013084,95716.0,95715.0,0.0001712]
[1734891688924,0.1078455,95716.0,95715.0,0.0001712]
[1734891689164,0.1088455,95716.0,95715.0,0.0001712]
[1734891690127,0.2588455,95716.0,95715.0,0.0001712]
[1734891690619,0.3385455,95716.0,95715.0,0.0001712]
[1734891690881,0.3375455,95716.0,95715.0,0.0001712]
[1734891691981,1.8455455,95716.0,95715.0,0.0001712]
[1734891692186,2.9685455,95716.0,95715.0,0.0001712]
[1734891692396,2.9655455,95716.0,95715.0,0.0001712]
[1734891692803,2.9656311,95716.0,95715.0,0.0001712]
[1734891693627,2.9636311,95716.0,95715.0,0.0001712]
[1734891694424,2.9866311,95716.0,95715.0,0.0001712]
[1734891694970,2.9906311,95716.0,95715.0,0.0001712]
[1734891695363,2.9866311,95716.0,95715.0,0.0001712]
[1734891695610,2.9936311,95716.0,95715.0,0.0011712]
[1734891696374,2.9866311,95716.0,95715.0,0.0001712]
[1734891696547,2.9936311,95716.0,95715.0,0.0011712]
[1734891698964,3.1412311,95716.0,95715.0,0.0011712]
[1734891707175,0.7252311,95716.0,95715.0,0.0011712]
[1734891707404,0.6225311,95716.0,95715.0,0.0011712]
[1734891707607,0.3125311,95716.0,95715.0,0.0011712]
[1734891707827,1.4565311,95716.0,95715.0,0.0011712]
[1734891707981,0.1149311,95716.0,95715.0,0.0011712]
[1734891708974,0.1079311,95716.0,95715.0,0.0001712]
[1734891709199,0.1129311,95716.0,95715.0,0.0001712]
[1734891709653,0.1079311,95716.0,95715.0,0.0001712]
[1734891710035,0.1109311,95716.0,95715.0,0.0001712]
[1734891711822,0.1079311,95716.0,95715.0,0.0001712]
[1734891712026,0.1109311,95716.0,95715.0,0.0001712]
[1734891712229,0.1079311,95716.0,95715.0,0.0001712]
[1734891712745,0.1079311,95716.0,95715.0,0.0011712]
[1734891712949,0.1079311,95716.0,95715.0,0.0001712]